bitfinex/quotes_SOLUSD_20241220
["timestamp","ask_amount","ask_price","bid_price","bid_amount"]
[1734693057979,41.82351673,182.51,182.47,23.776884]
[1734693058573,41.82351673,182.53,182.48,0.12549]
[1734693059775,41.82351673,182.53,182.47,23.776884]
[1734693059993,41.82351673,182.53,182.48,0.12549]
[1734693060172,41.82351673,182.55,182.48,0.12549]
[1734693060371,41.82351673,182.55,182.51,23.776884]
[1734693060578,41.82351673,182.53,182.47,23.776884]
[1734693060793,41.82351673,182.53,182.48,20.0]
[1734693060987,41.82351673,182.53,182.49,43.776884]
[1734693061299,41.82351673,182.53,182.46,23.776884]
[1734693061491,41.82351673,182.53,182.47,0.12549]
[1734693062503,41.82351673,182.53,182.46,23.776884]
[1734693062676,41.82351673,182.49,182.41,41.82351673]
[1734693063198,41.82351673,182.47,182.4,13.7056]
[1734693063495,41.82351673,182.52,182.35,0.82209867]
[1734693063496,41.82351673,182.45,182.35,41.82351673]
[1734693063692,41.82351673,182.45,182.36,13.7091]
[1734693063890,41.82351673,182.47,182.39,41.82351673]
[1734693064285,41.82351673,182.47,182.4,0.12549]
[1734693064588,41.82351673,182.45,182.35,55.53261673]
[1734693064782,41.82351673,182.45,182.39,0.12549]
[1734693064996,6.3987,182.51,182.39,41.94900673]
[1734693064997,41.82351673,182.47,182.39,41.94900673]
[1734693065699,41.82351673,182.47,182.39,55.65580673]
[1734693065895,41.82351673,182.47,182.4,23.776884]
[1734693066097,41.82351673,182.47,182.43,20.0]
[1734693066301,41.82351673,182.51,182.45,0.12549]
[1734693066802,41.82351673,182.55,182.48,23.902374]
[1734693067014,41.82351673,182.59,182.52,23.902374]
[1734693067505,41.82351673,182.57,182.52,23.902374]
[1734693068903,41.82351673,182.59,182.52,23.902374]
[1734693069095,41.82351673,182.59,182.52,23.776884]
[1734693069304,41.82351673,182.57,182.51,23.776884]
[1734693069598,41.82351673,182.57,182.52,0.12549]
[1734693070610,41.82351673,182.59,182.55,0.12549]
[1734693070900,6.4477,182.63,182.55,23.776884]
[1734693070901,41.82351673,182.57,182.55,23.776884]
[1734693071106,41.82351673,182.57,182.51,20.0]
[1734693071286,41.82351673,182.55,182.47,0.12549]
[1734693071482,41.82351673,182.55,182.49,20.0]
[1734693071984,41.82351673,182.55,182.46,55.52511673]
[1734693072185,41.82351673,182.55,182.47,0.12549]
[1734693072598,41.82351673,182.55,182.47,23.902374]
[1734693073602,41.82351673,182.55,182.49,0.12549]
[1734693073808,41.82351673,182.55,182.49,23.776884]
[1734693074024,41.82351673,182.53,182.49,23.776884]
[1734693074392,41.82351673,182.51,182.42,41.82351673]
[1734693074712,41.82351673,182.49,182.42,41.82351673]
[1734693074917,41.82351673,182.49,182.4,55.52951673]
[1734693075218,7.31121011,182.56,182.38,42.50655623]
[1734693075219,41.82351673,182.45,182.38,42.50655623]
[1734693075429,41.82351673,182.45,182.38,0.6830395]
[1734693076311,41.82351673,182.47,182.4,41.82351673]
[1734693076496,41.82351673,182.47,182.41,0.12549]
[1734693076899,7.31121011,182.56,182.44,0.12549]
[1734693076900,41.82351673,182.51,182.44,0.12549]
[1734693077606,41.82351673,182.53,182.47,0.12549]
[1734693077785,41.82351673,182.55,182.47,0.12549]
[1734693077984,41.82351673,182.55,182.49,0.12549]
[1734693078225,6.1185,182.56,182.49,0.12549]
[1734693078383,41.82351673,182.57,182.49,0.12549]
[1734693078709,51.63793623,182.59,182.53,0.12549]
[1734693079089,51.63793623,182.59,182.5,41.82351673]
[1734693079584,9.8144195,182.59,182.53,0.12549]
[1734693080202,9.8144195,182.59,182.55,0.12549]
[1734693080514,51.63793623,182.59,182.55,0.12549]
[1734693080811,51.63793623,182.59,182.5,41.82351673]
[1734693081112,41.82351673,182.57,182.5,41.82351673]
[1734693081288,41.82351673,182.57,182.48,43.46141673]
[1734693081490,41.82351673,182.57,182.51,20.0]
[1734693081700,41.82351673,182.57,182.52,0.12549]
[1734693082398,9.8144195,182.59,182.54,0.12549]
[1734693083089,9.8144195,182.59,182.55,0.12549]
[1734693083411,9.8144195,182.59,182.54,20.12549]
[1734693083613,9.8144195,182.59,182.54,0.12549]
[1734693085701,9.8144195,182.59,182.58,41.94900673]
[1734693086019,41.82351673,182.67,182.59,0.12549]
[1734693086215,41.82351673,182.69,182.61,0.12549]
[1734693087403,41.82351673,182.71,182.63,0.12549]
[1734693087814,41.82351673,182.69,182.63,0.12549]
[1734693087995,41.82351673,182.69,182.6,41.82351673]
[1734693088326,41.82351673,182.65,182.56,41.82351673]
[1734693088703,41.82351673,182.65,182.6,0.12549]
[1734693089526,41.82351673,182.7,182.63,0.12549]
[1734693090194,41.82351673,182.72,182.63,0.12549]
[1734693090399,41.82351673,182.7,182.63,0.12549]
[1734693091218,41.82351673,182.72,182.63,0.12549]
[1734693091416,41.82351673,182.7,182.63,0.12549]
[1734693091613,41.82351673,182.68,182.6,41.82351673]
[1734693091914,6.2681,182.73,182.54,41.82351673]
[1734693091915,41.82351673,182.62,182.54,41.82351673]
[1734693092228,41.82351673,182.6,182.52,41.82351673]
[1734693092821,41.82351673,182.6,182.53,0.12549]
[1734693092993,41.82351673,182.66,182.59,0.12549]
[1734693093617,49.9501,182.73,182.61,0.12549]
[1734693093618,41.82351673,182.68,182.61,0.12549]
[1734693094623,41.82351673,182.7,182.63,0.12549]
[1734693094824,41.82351673,182.7,182.65,0.12549]
[1734693095530,41.82351673,182.68,182.63,0.12549]
[1734693095825,6.2681,182.73,182.58,41.82351673]
[1734693095826,41.82351673,182.66,182.58,41.82351673]
[1734693096027,41.82351673,182.66,182.59,0.12549]
[1734693096502,41.82351673,182.66,182.58,41.82351673]
[1734693096897,41.82351673,182.68,182.61,0.12549]
[1734693097122,41.82351673,182.72,182.65,0.12549]
[1734693097303,41.82351673,182.72,182.65,23.902374]
[1734693097805,41.82351673,182.66,182.6,20.0]
[1734693098114,46.82351673,182.66,182.59,0.12549]
[1734693098505,46.82351673,182.66,182.58,41.82351673]
[1734693098917,5.0,182.66,182.61,0.12549]
[1734693099110,5.0,182.66,182.61,49.86694273]
[1734693099310,5.0,182.66,182.61,23.902374]
[1734693100517,5.0,182.66,182.61,0.12549]
[1734693100928,25.96456873,182.65,182.61,0.12549]
[1734693101124,5.0,182.66,182.61,0.12549]
[1734693101628,25.96456873,182.63,182.55,25.96456873]
[1734693101832,25.96456873,182.59,182.51,25.96456873]
[1734693102133,25.96456873,182.63,182.53,25.96456873]
[1734693102628,25.96456873,182.63,182.54,0.12549]
[1734693102930,25.96456873,182.63,182.53,25.96456873]
[1734693103232,25.96456873,182.63,182.54,0.12549]
[1734693103431,25.96456873,182.63,182.54,23.776884]
[1734693103819,25.96456873,182.63,182.55,0.12549]
[1734693104021,25.96456873,182.63,182.57,0.12549]
[1734693105823,25.96456873,182.59,182.51,25.96456873]
[1734693106229,25.96456873,182.59,182.52,0.12549]
[1734693106538,25.96456873,182.55,182.47,25.96456873]
[1734693107048,25.96456873,182.53,182.45,25.96456873]
[1734693107332,25.96456873,182.51,182.42,1.6658]
[1734693107536,30.0,182.57,182.41,25.96456873]
[1734693107537,25.96456873,182.49,182.41,25.96456873]
[1734693108237,25.96456873,182.45,182.38,0.6830395]
[1734693108448,25.96456873,182.47,182.39,25.96456873]
[1734693108743,20.0,182.5,182.42,0.12549]
[1734693108913,25.96456873,182.51,182.42,0.12549]
[1734693109118,25.96456873,182.51,182.44,0.12549]
[1734693109824,25.96456873,182.51,182.44,23.902374]
[1734693110240,25.96456873,182.51,182.41,25.96456873]
[1734693110628,25.96456873,182.51,182.44,0.12549]
[1734693110840,25.96456873,182.49,182.42,0.12549]
[1734693111514,25.96456873,182.49,182.42,23.902374]
[1734693112538,25.96456873,182.53,182.46,0.12549]
[1734693112712,25.96456873,182.53,182.46,23.902374]
[1734693113120,25.96456873,182.51,182.46,23.776884]
[1734693113639,25.96456873,182.49,182.46,23.776884]
[1734693113844,25.96456873,182.49,182.41,25.96456873]
[1734693114225,25.96456873,182.47,182.39,25.96456873]
[1734693114423,25.96456873,182.49,182.41,45.96456873]
[1734693115236,25.96456873,182.47,182.41,20.0]
[1734693115935,25.96456873,182.47,182.4,0.12549]
[1734693116544,25.96456873,182.47,182.4,23.902374]
[1734693116746,25.96456873,182.49,182.41,25.96456873]
[1734693116935,25.96456873,182.51,182.43,0.12549]
[1734693117131,25.96456873,182.51,182.43,26.09005873]
[1734693117529,25.96456873,182.51,182.44,23.776884]
[1734693117729,25.96456873,182.51,182.45,0.12549]
[1734693118247,25.96456873,182.53,182.47,0.12549]
[1734693118417,32.26776873,182.55,182.47,0.12549]
[1734693118621,32.26776873,182.55,182.49,0.12549]
[1734693118822,25.96456873,182.57,182.49,26.09005873]
[1734693119133,12.57624313,182.62,182.45,13.702]
[1734693119134,25.96456873,182.61,182.52,23.902374]
[1734693119344,25.96456873,182.61,182.54,23.902374]
[1734693119523,25.96456873,182.63,182.56,0.12549]
[1734693119845,5.0,182.66,182.56,23.902374]
[1734693119846,25.96456873,182.61,182.56,23.902374]
[1734693120867,12.18604088,182.66,182.56,23.776884]
[1734693120868,25.96456873,182.59,182.56,23.776884]
[1734693121030,25.96456873,182.61,182.56,23.776884]
[1734693121231,25.96456873,182.59,182.56,23.776884]
[1734693121652,25.96456873,182.59,182.52,23.776884]
[1734693121827,25.96456873,182.55,182.47,25.96456873]
[1734693122022,25.96456873,182.53,182.45,25.96456873]
[1734693122325,25.96456873,182.51,182.43,25.96456873]
[1734693123030,25.96456873,182.49,182.41,25.96456873]
[1734693123461,20.0,182.44,182.38,0.6830395]
[1734693123750,25.96456873,182.42,182.38,0.6830395]
[1734693123923,25.96456873,182.4,182.38,0.6830395]
[1734693124558,32.47546873,182.4,182.38,0.6830395]
[1734693126135,2.16730199,182.44,182.39,0.12549]
[1734693126441,32.22726873,182.48,182.39,0.12549]
[1734693126648,32.22726873,182.48,182.39,23.902374]
[1734693126950,25.96456873,182.46,182.39,23.902374]
[1734693127132,42.30628168,182.45,182.39,23.902374]
[1734693127326,42.30628168,182.45,182.39,23.776884]
[1734693127523,42.30628168,182.47,182.39,23.776884]
[1734693127724,42.30628168,182.49,182.42,0.12549]
[1734693127926,42.30628168,182.55,182.47,0.12549]
[1734693128139,42.30628168,182.57,182.49,0.12549]
[1734693128355,42.30628168,182.57,182.51,0.12549]
[1734693128531,42.30628168,182.57,182.51,23.902374]
[1734693128734,42.30628168,182.57,182.51,18.902374]
[1734693129123,42.30628168,182.55,182.51,18.902374]
[1734693129654,42.30628168,182.57,182.51,18.902374]
[1734693130246,42.30628168,182.53,182.41,42.30628168]
[1734693130552,42.30628168,182.46,182.37,42.30628168]
[1734693130749,42.30628168,182.44,182.37,42.30628168]
[1734693130956,42.30628168,182.44,182.35,56.01548168]
[1734693131142,42.30628168,182.46,182.39,42.43177168]
[1734693131454,42.30628168,182.46,182.39,42.30628168]
[1734693131831,42.30628168,182.44,182.37,42.30628168]
[1734693132031,42.30628168,182.44,182.35,42.30628168]
[1734693132750,42.30628168,182.48,182.4,0.12549]
[1734693133056,42.30628168,182.48,182.39,42.30628168]
[1734693133435,42.30628168,182.48,182.4,23.776884]
[1734693134291,42.30628168,182.46,182.39,23.902374]
[1734693135262,42.30628168,182.48,182.39,66.20865568]
[1734693135444,42.30628168,182.48,182.42,0.12549]
[1734693135635,2.25821286,182.53,182.42,23.902374]
[1734693135636,42.30628168,182.5,182.42,23.902374]
[1734693136237,42.30628168,182.48,182.42,23.902374]
[1734693136664,42.30628168,182.48,182.42,23.776884]
[1734693137361,42.30628168,182.43,182.35,42.30628168]
[1734693138938,42.30628168,182.45,182.39,23.776884]
[1734693139139,42.30628168,182.45,182.37,42.30628168]
[1734693139754,42.30628168,182.43,182.35,42.30628168]
[1734693140156,42.30628168,182.45,182.35,42.30628168]
[1734693140958,42.30628168,182.41,182.33,42.30628168]
[1734693141160,42.30628168,182.41,182.31,42.30628168]
[1734693141359,42.30628168,182.39,182.31,42.30628168]
[1734693142867,42.30628168,182.41,182.31,42.30628168]
[1734693144047,42.30628168,182.39,182.29,42.30628168]
[1734693144249,42.30628168,182.37,182.29,42.30628168]
[1734693144469,42.30628168,182.35,182.27,42.30628168]
[1734693145150,42.30628168,182.37,182.29,42.30628168]
[1734693145355,42.30628168,182.39,182.32,0.12549]
[1734693145553,42.30628168,182.43,182.35,42.30628168]
[1734693145744,42.30628168,182.43,182.34,0.12549]
[1734693145942,42.30628168,182.41,182.34,0.12549]
[1734693146145,42.30628168,182.41,182.33,42.30628168]
[1734693146654,42.30628168,182.43,182.35,42.30628168]
[1734693146861,42.30628168,182.43,182.34,0.12549]
[1734693147570,42.30628168,182.39,182.31,42.30628168]
[1734693147880,42.30628168,182.41,182.34,0.12549]
[1734693148365,42.30628168,182.41,182.33,42.30628168]
[1734693148659,42.30628168,182.41,182.32,0.12549]
[1734693149041,26.04985127,182.4,182.32,0.12549]
[1734693150143,26.04985127,182.42,182.34,0.12549]
[1734693150339,26.04985127,182.46,182.38,0.12549]
[1734693150949,26.38288067,182.48,182.38,0.12549]
[1734693150950,26.04985127,182.44,182.38,0.12549]
[1734693151164,26.04985127,182.44,182.35,26.04985127]
[1734693152755,26.04985127,182.44,182.36,0.12549]
[1734693152970,26.04985127,182.46,182.38,0.12549]
[1734693153543,26.04985127,182.44,182.35,26.04985127]
[1734693154348,26.04985127,182.44,182.36,0.12549]
[1734693155165,26.04985127,182.44,182.36,13.83399]
[1734693155880,26.38288067,182.48,182.36,13.83399]
[1734693155881,52.43273194,182.48,182.4,0.12549]
[1734693156747,52.43273194,182.48,182.42,0.12549]
[1734693157177,52.43273194,182.48,182.39,26.04985127]
[1734693157473,26.04985127,182.5,182.44,0.12549]
[1734693158774,26.04985127,182.5,182.42,0.12549]
[1734693159856,26.04985127,182.46,182.39,41.30785127]
[1734693160070,26.04985127,182.46,182.37,26.04985127]
[1734693160484,26.04985127,182.44,182.36,13.7089]
[1734693160687,26.04985127,182.44,182.35,26.04985127]
[1734693161994,26.04985127,182.44,182.36,0.12549]
[1734693162153,26.04985127,182.44,182.35,39.75965127]
[1734693162679,26.04985127,182.44,182.38,0.12549]
[1734693162882,26.04985127,182.46,182.4,0.12549]
[1734693163578,26.04985127,182.48,182.4,0.12549]
[1734693164984,26.04985127,182.46,182.4,0.12549]
[1734693167383,26.04985127,182.46,182.37,26.04985127]
[1734693167566,26.04985127,182.46,182.38,0.12549]
[1734693168475,26.04985127,182.45,182.36,26.04985127]
[1734693168787,26.04985127,182.52,182.38,26.04985127]
[1734693168788,26.04985127,182.47,182.38,26.04985127]
[1734693169363,26.04985127,182.49,182.4,26.04985127]
[1734693170471,26.04985127,182.49,182.41,0.12549]
[1734693171296,26.04985127,182.51,182.43,0.12549]
[1734693172172,26.04985127,182.49,182.43,0.12549]
[1734693173387,26.04985127,182.49,182.4,26.04985127]
[1734693173767,26.04985127,182.52,182.36,26.04985127]
[1734693173768,26.04985127,182.45,182.36,26.04985127]
[1734693174172,26.04985127,182.45,182.39,0.12549]
[1734693174376,26.04985127,182.45,182.38,26.04985127]
[1734693174676,26.04985127,182.45,182.36,26.04985127]
[1734693174876,26.04985127,182.45,182.37,0.12549]
[1734693175183,26.04985127,182.43,182.36,26.04985127]
[1734693175971,26.04985127,182.45,182.38,26.04985127]
[1734693176172,26.04985127,182.47,182.39,0.12549]
[1734693176986,26.04985127,182.47,182.41,0.12549]
[1734693177285,2.21432775,182.5,182.38,26.04985127]
[1734693177470,20.0,182.46,182.34,26.04985127]
[1734693177670,26.04985127,182.41,182.32,26.04985127]
[1734693178273,26.04985127,182.41,182.33,0.12549]
[1734693178474,26.04985127,182.41,182.34,26.04985127]
[1734693179797,26.04985127,182.43,182.35,0.12549]
[1734693179973,6.4261,182.44,182.37,0.12549]
[1734693180479,26.04985127,182.41,182.3,13.7134]
[1734693180785,26.04985127,182.41,182.33,26.04985127]
[1734693181170,26.04985127,182.39,182.31,26.04985127]
[1734693181389,26.04985127,182.37,182.29,26.04985127]
[1734693181592,26.04985127,182.39,182.31,26.04985127]
[1734693181985,26.04985127,182.41,182.31,26.04985127]
[1734693182182,46.04985127,182.41,182.31,26.04985127]
[1734693182503,46.04985127,182.41,182.33,26.04985127]
[1734693183066,26.04985127,182.41,182.33,26.04985127]
[1734693183297,26.04985127,182.39,182.31,26.04985127]
[1734693183466,26.04985127,182.39,182.29,26.04985127]
[1734693183871,26.04985127,182.37,182.29,26.04985127]
[1734693184187,26.04985127,182.35,182.25,26.04985127]
[1734693184376,26.04985127,182.35,182.23,14.93101493]
[1734693184377,26.04985127,182.26,182.23,8.27081493]
[1734693184576,26.04985127,182.24,182.23,8.27081493]
[1734693184872,26.04985127,182.24,182.21,8.27081493]
[1734693185693,6.4715,182.31,182.2,0.6830395]
[1734693185694,26.04985127,182.26,182.2,0.6830395]
[1734693187995,20.0,182.23,182.2,0.6830395]
[1734693188380,26.04985127,182.26,182.2,0.6830395]
[1734693188794,26.04985127,182.28,182.2,0.6830395]
[1734693188983,26.04985127,182.28,182.21,26.04985127]
[1734693189176,26.04985127,182.28,182.2,0.6830395]
[1734693189689,8.6614287,182.31,182.2,0.6830395]
[1734693189690,26.04985127,182.26,182.2,0.6830395]
[1734693191305,26.04985127,182.28,182.2,1.50622711]
[1734693192402,26.04985127,182.28,182.21,26.04985127]
[1734693192615,32.52135127,182.31,182.23,26.04985127]
[1734693193199,26.04985127,182.29,182.21,26.04985127]
[1734693193403,26.04985127,182.27,182.21,26.04985127]
[1734693193695,26.04985127,182.29,182.21,26.04985127]
[1734693193879,26.04985127,182.29,182.2,1.50600644]
[1734693194506,26.04985127,182.29,182.2,0.6830395]
[1734693194691,26.04985127,182.27,182.2,0.6830395]
[1734693195207,26.04985127,182.29,182.21,26.87300951]
[1734693195391,26.04985127,182.29,182.21,26.04985127]
[1734693197098,16.30177679,182.29,182.2,16.98481629]
[1734693197583,16.30177679,182.29,182.2,0.6830395]
[1734693197785,16.30177679,182.27,182.2,0.6830395]
[1734693199708,16.30177679,182.29,182.21,16.30177679]
[1734693199910,6.4715,182.31,182.23,16.30177679]
[1734693200097,6.4715,182.31,182.21,0.82314049]
[1734693200295,6.4715,182.31,182.23,16.30177679]
[1734693200603,16.30177679,182.28,182.2,16.30177679]
[1734693200798,0.82314049,182.27,182.2,16.30177679]
[1734693201605,20.0,182.25,182.2,16.30177679]
[1734693201833,2.18249214,182.32,182.24,16.30177679]
[1734693202008,16.30177679,182.31,182.22,16.30177679]
[1734693202213,16.30177679,182.29,182.22,16.30177679]
[1734693203410,6.5258,182.28,182.2,16.30177679]
[1734693203793,0.82314049,182.27,182.2,16.30177679]
[1734693204114,17.12491728,182.27,182.2,16.30177679]
[1734693205006,0.82314049,182.27,182.2,16.30177679]
[1734693206504,0.82314049,182.27,182.22,16.30177679]
[1734693206894,0.82314049,182.27,182.2,16.30177679]
[1734693207094,17.12491728,182.27,182.16,13.724]
[1734693207311,16.30177679,182.25,182.16,13.724]
[1734693207506,0.82314049,182.24,182.17,16.30177679]
[1734693207914,0.82314049,182.24,182.19,16.30177679]
[1734693208114,0.82314049,182.26,182.19,16.30177679]
[1734693208315,0.82314049,182.26,182.16,30.02577679]
[1734693208316,0.82314049,182.27,182.21,16.30177679]
[1734693208816,0.82314049,182.27,182.2,17.12494596]
[1734693209020,0.82314049,182.27,182.2,16.30177679]
[1734693210718,16.30177679,182.25,182.18,13.7221]
[1734693210913,16.30177679,182.27,182.18,30.02387679]
[1734693211104,0.82314049,182.26,182.18,30.02387679]
[1734693211296,0.82314049,182.26,182.2,16.30177679]
[1734693211502,0.82314049,182.26,182.19,0.82316112]
[1734693211709,0.82314049,182.26,182.2,16.30177679]
[1734693212126,0.82314049,182.28,182.2,16.30177679]
[1734693215521,16.30177679,182.27,182.15,0.8231472]
[1734693215717,0.82314049,182.26,182.17,16.30177679]
[1734693216029,0.82314049,182.26,182.19,16.30177679]
[1734693220026,0.82314049,182.26,182.18,0.82312221]
[1734693220230,0.82314049,182.26,182.19,16.30177679]
[1734693220732,0.82314049,182.26,182.17,16.30177679]
[1734693220908,0.82314049,182.26,182.17,17.12499021]
[1734693221543,0.82314049,182.26,182.17,16.30177679]
[1734693221723,16.30177679,182.25,182.17,16.30177679]
[1734693221907,0.82314049,182.24,182.17,16.30177679]
[1734693223534,0.82314049,182.26,182.19,16.30177679]
[1734693223830,0.82314049,182.26,182.18,16.30177679]
[1734693224430,16.30177679,182.23,182.15,0.82320424]
[1734693225137,22.33497679,182.21,182.15,0.82320424]
[1734693225323,6.0332,182.21,182.14,16.30177679]
[1734693225513,22.33497679,182.21,182.15,0.82325911]
[1734693225710,16.30177679,182.19,182.15,0.82325911]
[1734693226027,6.0332,182.21,182.15,0.82325911]
[1734693226325,16.30177679,182.19,182.13,0.94875301]
[1734693227520,6.0332,182.21,182.14,16.30177679]
[1734693227721,22.33497679,182.21,182.14,16.30177679]
[1734693227933,22.33497679,182.21,182.13,17.2505298]
[1734693228448,16.30177679,182.21,182.14,16.30177679]
[1734693228752,16.30177679,182.23,182.16,16.42726679]
[1734693229210,16.30177679,182.24,182.16,16.42726679]
[1734693229403,16.30177679,182.23,182.16,16.42726679]
[1734693229803,16.30177679,182.24,182.16,16.42726679]
[1734693230102,16.30177679,182.24,182.17,16.30177679]
[1734693230832,16.30177679,182.23,182.16,0.12549]
[1734693231128,16.30177679,182.22,182.16,0.12549]
[1734693231336,16.30177679,182.23,182.16,0.12549]
[1734693231513,16.30177679,182.24,182.16,16.30177679]
[1734693231847,8.0129,182.3,182.16,16.30177679]
[1734693231848,16.30177679,182.23,182.16,0.12549]
[1734693232009,16.30177679,182.23,182.15,16.30177679]
[1734693232204,16.30177679,182.24,182.16,16.30177679]
[1734693232733,16.30177679,182.25,182.17,16.30177679]
[1734693233044,0.82314049,182.24,182.17,16.30177679]
[1734693233234,17.12491728,182.24,182.16,16.30177679]
[1734693233733,16.30177679,182.23,182.16,16.30177679]
[1734693233935,16.30177679,182.24,182.16,16.30177679]
[1734693236365,16.30177679,182.24,182.16,0.12549]
[1734693236650,16.30177679,182.24,182.16,16.42726679]
[1734693237756,0.82314049,182.29,182.19,0.12549]
[1734693237957,16.30177679,182.27,182.19,16.30177679]
[1734693238169,16.30177679,182.25,182.18,16.30177679]
[1734693238369,16.30177679,182.25,182.17,16.30177679]
[1734693238531,16.30177679,182.25,182.16,14.54663188]
[1734693238727,16.30177679,182.25,182.16,17.12490867]
[1734693239054,16.30177679,182.23,182.16,16.30177679]
[1734693239769,16.30177679,182.25,182.17,0.12549]
[1734693239948,16.30177679,182.25,182.18,16.30177679]
[1734693240269,16.30177679,182.27,182.19,0.94859795]
[1734693241074,10.43422981,182.27,182.19,11.38282776]
[1734693241234,10.43422981,182.27,182.2,10.43422981]
[1734693241975,6.4058,182.3,182.19,0.94859795]
[1734693241976,10.43422981,182.28,182.21,0.82303212]
[1734693242276,10.43422981,182.25,182.15,9.45634468]
[1734693242447,0.82314049,182.24,182.17,10.43422981]
[1734693242644,0.82314049,182.31,182.19,10.43422981]
[1734693242857,10.43422981,182.28,182.2,10.43422981]
[1734693243184,16.30161264,182.29,182.21,16.30161264]
[1734693243352,17.12475313,182.28,182.2,16.30161264]
[1734693243558,16.30161264,182.28,182.2,16.30161264]
[1734693243781,16.30161264,182.29,182.21,16.30161264]
[1734693244089,4.10531295,182.27,182.21,16.30161264]
[1734693244286,4.10531295,182.27,182.21,16.42710264]
[1734693244788,4.10531295,182.26,182.22,17.12456988]
[1734693244945,4.10531295,182.26,182.22,16.30161264]
[1734693245142,4.10531295,182.25,182.22,16.30161264]
[1734693245874,4.10531295,182.24,182.22,16.30161264]
[1734693246358,4.10531295,182.23,182.22,16.42710264]
[1734693246544,4.10531295,182.23,182.22,0.12549]
[1734693246746,4.10531295,182.23,182.22,16.42710264]
[1734693247156,16.30161264,182.27,182.18,20.0]
[1734693247360,52.92641264,182.34,182.18,16.30161264]
[1734693247361,16.30161264,182.25,182.18,16.30161264]
[1734693247578,17.12475313,182.24,182.17,16.30161264]
[1734693247775,0.82314049,182.24,182.18,16.30161264]
[1734693247990,16.30161264,182.26,182.19,16.30161264]
[1734693248283,0.82314049,182.25,182.19,16.30161264]
[1734693248482,16.30161264,182.26,182.19,16.30161264]
[1734693248796,0.82314049,182.25,182.19,16.30161264]
[1734693248957,0.82314049,182.25,182.18,16.30161264]
[1734693249155,0.82314049,182.25,182.19,16.30161264]
[1734693249451,17.12475313,182.25,182.17,16.30161264]
[1734693249853,16.30161264,182.24,182.16,16.30161264]
[1734693250053,17.12475313,182.23,182.16,16.30161264]
[1734693250300,0.82314049,182.23,182.17,16.30161264]
[1734693250993,0.82314049,182.24,182.17,16.30161264]
[1734693251198,0.82314049,182.24,182.2,16.30161264]
[1734693251413,43.7127,182.32,182.17,16.30161264]
[1734693251414,16.30161264,182.25,182.17,16.30161264]
[1734693251607,0.82314049,182.24,182.17,16.30161264]
[1734693252067,0.12549,182.21,182.14,0.82321185]
[1734693252266,16.30161264,182.16,182.07,51.80006851]
[1734693252493,0.82314049,182.15,182.09,16.30161264]
[1734693252991,0.82314049,182.15,182.05,0.8236711]
[1734693253204,17.12475313,182.18,182.11,16.30161264]
[1734693253585,16.30161264,182.16,182.09,16.30161264]
[1734693253799,17.12475313,182.15,182.07,16.30161264]
[1734693253994,16.30161264,182.13,182.06,16.30161264]
[1734693254313,17.12475313,182.12,182.05,16.30161264]
[1734693254523,16.30161264,182.09,182.02,16.30161264]
[1734693254810,16.30161264,182.09,182.01,0.6830395]
[1734693254811,16.30161264,182.05,182.01,0.6830395]
[1734693255134,17.12475313,182.04,182.01,0.6830395]
[1734693255400,16.30161264,182.02,182.01,0.6830395]
[1734693255573,17.12475313,182.02,182.01,0.6830395]
[1734693256474,20.0,181.99,181.85,8.63334475]
[1734693256788,16.30161264,181.89,181.82,8.63334475]
[1734693256993,0.82314049,181.88,181.82,8.63334475]
[1734693257320,6.6147,181.92,181.82,8.63334475]
[1734693257321,16.30161264,181.87,181.82,8.63334475]
[1734693257488,0.82314049,181.86,181.82,8.63334475]
[1734693258000,20.0,181.89,181.82,16.30161264]
[1734693258001,4.07195719,181.85,181.82,16.30161264]
[1734693258175,4.07195719,181.85,181.81,16.30161264]
[1734693258377,4.07195719,181.85,181.83,16.98465214]
[1734693258592,0.82314049,181.91,181.84,16.30161264]
[1734693258772,16.30161264,181.94,181.87,16.30161264]
[1734693258972,0.82314049,181.93,181.88,16.30161264]
[1734693259184,4.06451079,181.9,181.89,16.30161264]
[1734693259409,4.06451079,181.9,181.88,16.30161264]
[1734693259599,4.06451079,181.9,181.89,16.30161264]
[1734693260080,7.759,182.02,181.89,16.30161264]
[1734693260081,0.82314049,181.96,181.89,16.30161264]
[1734693260287,16.30161264,181.94,181.87,16.30161264]
[1734693260483,16.30161264,181.89,181.83,20.6830395]
[1734693260806,30.0,181.98,181.83,36.98465214]
[1734693260807,16.30161264,181.91,181.83,36.98465214]
[1734693261001,16.30161264,181.92,181.85,16.30161264]
[1734693262006,16.30161264,181.94,181.87,16.30161264]
[1734693262189,17.12475313,181.93,181.86,16.30161264]
[1734693262384,17.12475313,181.93,181.85,16.30161264]
[1734693262577,21.17057254,181.93,181.85,16.30161264]
[1734693263017,31.04862233,181.93,181.85,26.17966243]
[1734693263183,27.00280292,181.93,181.85,26.17966243]